fUST/lending_fUST_20250223
["ID","MTS","AMOUNT","RATE_DAILY","PERIOD"]
[354121614,1740261044494,-500.0,0.00013945,2]
[354121616,1740261044503,-500.0,0.00013945,2]
[354121618,1740261044512,-500.0,0.00013945,2]
[354121620,1740261044522,-500.0,0.00013945,2]
[354121622,1740261044531,-349.86,0.00013945,2]
[354121624,1740261044540,-500.0,0.00013945,2]
[354121626,1740261044549,-500.0,0.00013945,2]
[354121628,1740261044558,-500.0,0.00013945,2]
[354121630,1740261044567,-541.41,0.00013945,2]
[354121632,1740261044576,-328.2,0.00013945,2]
[354121634,1740261044586,-641.85,0.00013945,2]
[354121636,1740261044596,-500.0,0.00013945,2]
[354121639,1740261044605,-500.0,0.00013945,2]
[354121641,1740261044614,-604.95,0.00013945,2]
[354121643,1740261044623,-500.0,0.00013945,2]
[354121644,1740261044633,-504.19603379,0.00013945,2]
[354121647,1740261044642,-500.0,0.00013945,2]
[354121649,1740261044651,-500.0,0.00013945,2]
[354121650,1740261044661,-500.0,0.00013945,2]
[354121653,1740261044675,-500.0,0.00013945,2]
[354121655,1740261044684,-500.0,0.00013945,2]
[354121657,1740261044693,-500.0,0.00013945,2]
[354121659,1740261044703,-500.0,0.00013945,2]
[354121661,1740261044712,-500.0,0.00013945,2]
[354121663,1740261044721,-500.0,0.00013945,2]
[354121665,1740261044730,-500.0,0.00013945,2]
[354121667,1740261044739,-1260.69,0.00013945,2]
[354121669,1740261044749,-500.0,0.00013945,2]
[354121671,1740261044758,-417.18870941,0.00013945,2]
[354121673,1740261044767,-500.0,0.00013945,2]
[354121675,1740261044777,-500.0,0.00013945,2]
[354121677,1740261044786,-500.0,0.00013945,2]
[354121679,1740261044795,-500.0,0.00013945,2]
[354121681,1740261044804,-500.0,0.00013945,2]
[354121683,1740261044813,-552.62,0.00013945,2]
[354121684,1740261044822,-500.0,0.00013945,2]
[354121687,1740261044831,-500.0,0.00013945,2]
[354121689,1740261044840,-514.22389054,0.00013945,2]
[354121691,1740261044851,-154.74,0.00013945,2]
[354121693,1740261044860,-500.0,0.00013945,2]
[354121695,1740261044870,-500.0,0.00013945,2]
[354121697,1740261044879,-500.0,0.00013945,2]
[354121699,1740261044888,-500.0,0.00013945,2]
[354121701,1740261044898,-500.0,0.00013945,2]
[354121703,1740261044907,-500.0,0.00013945,2]
[354121705,1740261044916,-500.0,0.00013945,2]
[354121706,1740261044926,-500.0,0.00013945,2]
[354121708,1740261044936,-500.0,0.00013945,2]
[354121710,1740261044945,-500.0,0.00013945,2]
[354121712,1740261044954,-238.89,0.00013945,2]
[354121713,1740261044963,-500.0,0.00013945,2]
[354121714,1740261044973,-500.0,0.00013945,2]
[354121715,1740261044982,-500.0,0.00013945,2]
[354121716,1740261044991,-500.0,0.00013945,2]
[354121717,1740261045000,-500.0,0.00013945,2]
[354121718,1740261045010,-501.16,0.00013945,2]
[354121719,1740261045019,-500.0,0.00013945,2]
[354121720,1740261045028,-500.0,0.00013945,2]
[354121721,1740261045037,-500.0,0.00013945,2]
[354121722,1740261045046,-500.0,0.00013945,2]
[354121723,1740261045055,-500.0,0.00013945,2]
[354121724,1740261045065,-500.0,0.00013945,2]
[354121725,1740261045074,-500.0,0.00013945,2]
[354121726,1740261045083,-500.0,0.00013945,2]
[354121727,1740261045093,-503.52056844,0.00013945,2]
[354121728,1740261045103,-500.0,0.00013945,2]
[354121729,1740261045112,-500.0,0.00013945,2]
[354121730,1740261045121,-500.0,0.00013945,2]
[354121731,1740261045130,-500.0,0.00013945,2]
[354121732,1740261045140,-237.0,0.00013945,2]
[354121733,1740261045149,-500.0,0.00013945,2]
[354121734,1740261045158,-2389.62,0.00013945,2]
[354121735,1740261045168,-500.0,0.00013945,2]
[354121736,1740261045177,-500.0,0.00013945,2]
[354121737,1740261045186,-500.0,0.00013945,2]
[354121738,1740261045196,-500.0,0.00013945,2]
[354121739,1740261045204,-841.55,0.00013945,2]
[354121740,1740261045214,-500.0,0.00013945,2]
[354121741,1740261045224,-500.0,0.00013945,2]
[354121742,1740261045233,-500.0,0.00013945,2]
[354121743,1740261045243,-12784.92,0.00013945,2]
[354121744,1740261045253,-500.0,0.00013945,2]
[354121745,1740261045262,-695.29,0.00013945,2]
[354121746,1740261045271,-500.0,0.00013945,2]
[354121747,1740261045283,-1566.94,0.00013945,2]
[354121748,1740261045293,-500.0,0.00013945,2]
[354121749,1740261045302,-500.0,0.00013945,2]
[354121750,1740261045311,-500.0,0.00013945,2]
[354121751,1740261045321,-560.29,0.00013945,2]
[354121752,1740261045330,-2369.43,0.00013945,2]
[354121753,1740261045339,-500.0,0.00013945,2]
[354121754,1740261045348,-500.0,0.00013945,2]
[354121755,1740261045358,-500.0,0.00013945,2]
[354121756,1740261045369,-500.0,0.00013945,2]
[354121757,1740261045380,-500.0,0.00013945,2]
[354121758,1740261045391,-500.0,0.00013945,2]
[354121759,1740261045400,-345.61,0.00014027,2]
[354121760,1740261045413,-195.7,0.00014027,2]
[354121761,1740261045431,-168.79,0.00014027,2]
[354121762,1740261045441,-500.0,0.00014027,2]
[354121763,1740261045451,-640.36,0.00014027,2]
[354121764,1740261045461,-500.0,0.00014027,2]
[354121765,1740261045470,-500.0,0.00014027,2]
[354121766,1740261045481,-500.0,0.00014027,2]
[354121767,1740261045490,-500.0,0.00014027,2]
[354121768,1740261045500,-500.0,0.00014027,2]
[354121769,1740261045510,-500.0,0.00014027,2]
[354121770,1740261045520,-500.0,0.00014027,2]
[354121771,1740261045529,-500.0,0.00014027,2]
[354121772,1740261045538,-270.52,0.00014027,2]
[354121773,1740261045547,-500.0,0.00014027,2]
[354121774,1740261045556,-406.0,0.00014027,2]
[354121775,1740261045565,-500.0,0.00014027,2]
[354121776,1740261045644,-500.0,0.00014027,2]
[354121777,1740261045667,-500.0,0.00014027,2]
[354121778,1740261045676,-500.0,0.00014027,2]
[354121779,1740261045685,-500.0,0.00014027,2]
[354121780,1740261045694,-500.0,0.00014027,2]
[354121781,1740261045703,-163.69,0.00014027,2]
[354121782,1740261045712,-1260.69,0.00014027,2]
[354121783,1740261045722,-500.0,0.00014027,2]
[354121784,1740261045731,-500.0,0.00014027,2]
[354121785,1740261045740,-552.62,0.00014027,2]
[354121786,1740261045749,-500.0,0.00014027,2]
[354121787,1740261045758,-500.0,0.00014027,2]
[354121788,1740261045768,-165.43,0.00014027,2]
[354121789,1740261045777,-500.0,0.00014027,2]
[354121790,1740261045786,-500.0,0.00014027,2]
[354121791,1740261045795,-500.0,0.00014027,2]
[354121792,1740261045804,-500.0,0.00014027,2]
[354121793,1740261045813,-151.0,0.00014027,2]
[354121794,1740261045823,-500.0,0.00014027,2]
[354121795,1740261045832,-191.26,0.00014027,2]
[354121796,1740261045843,-500.0,0.00014027,2]
[354121797,1740261045853,-501.16,0.00014027,2]
[354121798,1740261045862,-500.0,0.00014027,2]
[354121799,1740261045872,-234.7,0.00014027,2]
[354121800,1740261045881,-500.0,0.00014027,2]
[354121801,1740261045890,-500.0,0.00014027,2]
[354121802,1740261045899,-2389.62,0.00014027,2]
[354121803,1740261045908,-500.0,0.00014027,2]
[354121804,1740261045918,-500.0,0.00014027,2]
[354121805,1740261045927,-500.0,0.00014027,2]
[354121806,1740261045936,-841.55,0.00014027,2]
[354121807,1740261045946,-500.35,0.00014027,2]
[354121808,1740261045955,-12784.92,0.00014027,2]
[354121809,1740261045964,-695.29,0.00014027,2]
[354121810,1740261045973,-1566.94,0.00014027,2]
[354121811,1740261045982,-295.12,0.00014027,2]
[354121812,1740261045991,-500.0,0.00014027,2]
[354121813,1740261046000,-560.29,0.00014027,2]
[354121814,1740261046009,-151.0,0.00014027,2]
[354121815,1740261046018,-2369.43,0.00014027,2]
[354121816,1740261046027,-500.0,0.00014027,2]
[354121817,1740261046036,-500.0,0.00014027,2]
[354121818,1740261046046,-564.85,0.00014027,2]
[354121819,1740261046055,-500.0,0.00014027,2]
[354121820,1740261046064,-500.0,0.00014109,2]
[354121821,1740261046073,-500.0,0.00014109,2]
[354121822,1740261046082,-500.0,0.00014109,2]
[354121823,1740261046092,-509.44,0.00014109,2]
[354121824,1740261046101,-500.0,0.00014109,2]
[354121825,1740261046110,-500.0,0.00014109,2]
[354121826,1740261046120,-638.48,0.00014109,2]
[354121827,1740261046129,-500.0,0.00014109,2]
[354121828,1740261046138,-648.17614041,0.00014109,2]
[354121829,1740261046147,-264.23,0.00014109,2]
[354121830,1740261046157,-171.49052145,0.00014109,2]
[354121831,1740261046166,-500.0,0.00014109,2]
[354121832,1740261046175,-500.0,0.00014109,2]
[354121833,1740261046187,-500.0,0.00014109,2]
[354121834,1740261046199,-500.0,0.00014109,2]
[354121835,1740261046210,-500.0,0.00014109,2]
[354121836,1740261046221,-1260.69,0.00014109,2]
[354121837,1740261046231,-500.0,0.00014109,2]
[354121838,1740261046239,-500.0,0.00014109,2]
[354121839,1740261046248,-552.62,0.00014109,2]
[354121840,1740261046258,-500.0,0.00014109,2]
[354121841,1740261046267,-500.0,0.00014109,2]
[354121842,1740261046276,-500.0,0.00014109,2]
[354121843,1740261046291,-500.0,0.00014109,2]
[354121844,1740261046300,-500.0,0.00014109,2]
[354121845,1740261046310,-500.0,0.00014109,2]
[354121846,1740261046320,-288.11,0.00014109,2]
[354121847,1740261046331,-500.0,0.00014109,2]
[354121848,1740261046340,-501.16,0.00014109,2]
[354121849,1740261046350,-500.12,0.00014109,2]
[354121850,1740261046362,-500.0,0.00014109,2]
[354121851,1740261046371,-500.0,0.00014109,2]
[354121852,1740261046380,-2389.62,0.00014109,2]
[354121853,1740261046390,-500.0,0.00014109,2]
[354121854,1740261046400,-500.0,0.00014109,2]
[354121855,1740261046409,-500.0,0.00014109,2]
[354121856,1740261046418,-841.55,0.00014109,2]
[354121858,1740261046428,-12784.92,0.00014109,2]
[354121859,1740261046437,-695.29,0.00014109,2]
[354121860,1740261046447,-1566.94,0.00014109,2]
[354121861,1740261046456,-500.0,0.00014109,2]
[354121862,1740261046466,-560.29,0.00014109,2]
[354121863,1740261046475,-2369.43,0.00014109,2]
[354121865,1740261046484,-500.0,0.00014109,2]
[354121866,1740261046494,-500.0,0.00014109,2]
[354121867,1740261046503,-500.0,0.00014109,2]
[354121868,1740261046512,-500.0,0.00014149,2]
[354121869,1740261046522,-500.0,0.00014191,2]
[354121870,1740261046531,-437.16,0.00014191,2]
[354121871,1740261046541,-500.0,0.00014191,2]
[354121872,1740261046551,-500.0,0.00014191,2]
[354121873,1740261046560,-248.88,0.00014191,2]
[354121874,1740261046569,-500.0,0.00014191,2]
[354121875,1740261046579,-500.0,0.00014191,2]
[354121876,1740261046588,-500.0,0.00014191,2]
[354121877,1740261046598,-500.0,0.00014191,2]
[354121878,1740261046607,-1260.69,0.00014191,2]
[354121879,1740261046616,-500.0,0.00014191,2]
[354121880,1740261046626,-475.35,0.00014191,2]
[354121881,1740261046635,-552.62,0.00014191,2]
[354121882,1740261046644,-500.0,0.00014191,2]
[354121884,1740261046653,-500.0,0.00014191,2]
[354121885,1740261046663,-500.0,0.00014191,2]
[354121886,1740261046672,-500.0,0.00014191,2]
[354121887,1740261046681,-500.0,0.00014191,2]
[354121888,1740261046690,-500.0,0.00014191,2]
[354121889,1740261046699,-500.0,0.00014191,2]
[354121890,1740261046709,-501.16,0.00014191,2]
[354121891,1740261046718,-500.0,0.00014191,2]
[354121892,1740261046728,-500.0,0.00014191,2]
[354121893,1740261046737,-2389.62,0.00014191,2]
[354121894,1740261046746,-295.08,0.00014191,2]
[354121895,1740261046756,-500.0,0.00014191,2]
[354121896,1740261046765,-500.0,0.00014191,2]
[354121897,1740261046774,-841.55,0.00014191,2]
[354121898,1740261046783,-12784.92,0.00014191,2]
[354121899,1740261046792,-695.29,0.00014191,2]
[354121900,1740261046802,-1566.94,0.00014191,2]
[354121901,1740261046811,-500.0,0.00014191,2]
[354121902,1740261046821,-560.29,0.00014191,2]
[354121904,1740261046830,-2369.43,0.00014191,2]
[354121906,1740261046839,-500.0,0.00014191,2]
[354121908,1740261046848,-620.4,0.00014191,2]
[354121910,1740261046858,-500.0,0.00014191,2]
[354121912,1740261046867,-644.68,0.00014273,2]
[354121914,1740261046876,-500.0,0.00014273,2]
[354121915,1740261046885,-500.0,0.00014273,2]
[354121916,1740261046895,-154.331348,0.00014273,2]
[354121917,1740261046904,-500.0,0.00014273,2]
[354121918,1740261046914,-500.0,0.00014273,2]
[354121919,1740261046922,-500.0,0.00014273,2]
[354121920,1740261046931,-500.0,0.00014273,2]
[354121921,1740261046941,-1260.69,0.00014273,2]
[354121922,1740261046950,-438.94,0.00014273,2]
[354121923,1740261046959,-552.62,0.00014273,2]
[354121924,1740261046968,-500.0,0.00014273,2]
[354121925,1740261046977,-500.0,0.00014273,2]
[354121926,1740261046987,-500.0,0.00014273,2]
[354121927,1740261046996,-500.0,0.00014273,2]
[354121928,1740261047005,-500.0,0.00014273,2]
[354121929,1740261047015,-500.0,0.00014273,2]
[354121930,1740261047024,-500.0,0.00014273,2]
[354121931,1740261047034,-501.16,0.00014273,2]
[354121932,1740261047043,-636.88,0.00014273,2]
[354121933,1740261047052,-500.0,0.00014273,2]
[354121934,1740261047061,-2389.62,0.00014273,2]
[354121935,1740261047070,-500.0,0.00014273,2]
[354121936,1740261047079,-500.0,0.00014273,2]
[354121937,1740261047089,-841.55,0.00014273,2]
[354121938,1740261047099,-12784.92,0.00014273,2]
[354121939,1740261047109,-695.29,0.00014273,2]
[354121940,1740261047119,-1566.94,0.00014273,2]
[354121941,1740261047129,-315.85,0.00014273,2]
[354121942,1740261047139,-560.29,0.00014273,2]
[354121943,1740261047148,-2369.43,0.00014273,2]
[354121944,1740261047157,-500.0,0.00014273,2]
[354121945,1740261047167,-500.0,0.00014273,2]
[354121946,1740261047177,-1000.0,0.00014321,2]
[354121947,1740261047187,-678.75479462,0.00014324,2]
[354121948,1740261047196,-1125.78062594,0.00014338,2]
[354121949,1740261047206,-171.24069311,0.00014338,2]
[354121950,1740261047216,-171.24069311,0.00014338,2]
[354121951,1740261047225,-171.24069311,0.00014338,2]
[354121952,1740261047235,-171.24069311,0.00014338,2]
[354121953,1740261047245,-171.24069311,0.00014338,2]
[354121954,1740261047255,-171.24069311,0.00014338,2]
[354121955,1740261047265,-171.24069311,0.00014338,2]
[354121956,1740261047274,-171.24069311,0.00014338,2]
[354121957,1740261047286,-171.24069311,0.00014338,2]
[354121958,1740261047296,-171.24069311,0.00014338,2]
[354121959,1740261047306,-171.24069311,0.00014338,2]
[354121960,1740261047315,-171.24069311,0.00014338,2]
[354121961,1740261047325,-171.24069311,0.00014338,2]
[354121962,1740261047335,-171.24069311,0.00014338,2]
[354121963,1740261047344,-171.24069311,0.00014338,2]
[354121964,1740261047353,-171.24069311,0.00014338,2]
[354121965,1740261047363,-171.24069311,0.00014338,2]
[354121966,1740261047372,-171.24069311,0.00014338,2]
[354121967,1740261047381,-171.24069311,0.00014338,2]
[354121968,1740261047390,-171.24,0.00014338,2]
[354121969,1740261047399,-500.0,0.00014356,2]
[354121970,1740261047409,-500.0,0.00014356,2]
[354121971,1740261047418,-500.0,0.00014356,2]
[354121972,1740261047428,-500.0,0.00014356,2]
[354121973,1740261047437,-313.28,0.00014356,2]
[354121974,1740261047446,-500.0,0.00014356,2]
[354121975,1740261047457,-1260.69,0.00014356,2]
[354121976,1740261047467,-552.62,0.00014356,2]
[354121977,1740261047477,-500.0,0.00014356,2]
[354121978,1740261047486,-500.0,0.00014356,2]
[354121979,1740261047495,-215.57,0.00014356,2]
[354121980,1740261047505,-500.0,0.00014356,2]
[354121981,1740261047514,-500.0,0.00014356,2]
[354121982,1740261047524,-500.0,0.00014356,2]
[354121983,1740261047534,-500.0,0.00014356,2]
[354121984,1740261047543,-501.16,0.00014356,2]
[354121985,1740261047553,-500.0,0.00014356,2]
[354121986,1740261047562,-2389.62,0.00014356,2]
[354121987,1740261047571,-500.0,0.00014356,2]
[354121988,1740261047580,-500.0,0.00014356,2]
[354121989,1740261047590,-841.55,0.00014356,2]
[354121990,1740261047599,-12784.92,0.00014356,2]
[354121991,1740261047609,-695.29,0.00014356,2]
[354121992,1740261047618,-1566.94,0.00014356,2]
[354121993,1740261047628,-560.29,0.00014356,2]
[354121994,1740261047637,-2369.43,0.00014356,2]
[354121995,1740261047646,-500.0,0.00014356,2]
[354121996,1740261047656,-500.0,0.00014356,2]
[354121997,1740261047665,-500.0,0.00014438,2]
[354121998,1740261047674,-353.08,0.00014438,2]
[354121999,1740261047683,-500.0,0.00014438,2]
[354122000,1740261047774,-500.0,0.00014438,2]
[354122001,1740261047785,-500.0,0.00014438,2]
[354122002,1740261047795,-1260.69,0.00014438,2]
[354122003,1740261047804,-552.62,0.00014438,2]
[354122004,1740261047814,-500.0,0.00014438,2]
[354122005,1740261047824,-500.0,0.00014438,2]
[354122006,1740261047833,-500.0,0.00014438,2]
[354122007,1740261047842,-500.0,0.00014438,2]
[354122008,1740261047852,-500.0,0.00014438,2]
[354122009,1740261047862,-503.76,0.00014438,2]
[354122010,1740261047871,-501.16,0.00014438,2]
[354122011,1740261047881,-500.0,0.00014438,2]
[354122012,1740261047890,-2389.62,0.00014438,2]
[354122013,1740261047900,-500.0,0.00014438,2]
[354122014,1740261047910,-500.0,0.00014438,2]
[354122015,1740261047919,-841.55,0.00014438,2]
[354122016,1740261047928,-12784.92,0.00014438,2]
[354122017,1740261047938,-695.29,0.00014438,2]
[354122018,1740261047949,-1566.94,0.00014438,2]
[354122019,1740261047959,-560.29,0.00014438,2]
[354122020,1740261047968,-2369.43,0.00014438,2]
[354122021,1740261047978,-500.0,0.00014438,2]
[354122022,1740261047988,-500.0,0.00014438,2]
[354122023,1740261047998,-217.49955703,0.00014502,2]
[354122024,1740261048007,-20343.05768082,0.0001452,5]
[354122025,1740261048016,-500.0,0.0001452,2]
[354122026,1740261048026,-151.0,0.0001452,2]
[354122027,1740261048035,-151.0,0.0001452,2]
[354122028,1740261048045,-151.0,0.0001452,2]
[354122029,1740261048055,-500.0,0.0001452,2]
[354122030,1740261048064,-500.0,0.0001452,2]
[354122031,1740261048073,-500.0,0.0001452,2]
[354122032,1740261048083,-1260.69,0.0001452,2]
[354122033,1740261048093,-552.62,0.0001452,2]
[354122034,1740261048103,-500.0,0.0001452,2]
[354122035,1740261048113,-222.88,0.0001452,2]
[354122036,1740261048122,-545.71,0.0001452,2]
[354122037,1740261048132,-500.0,0.0001452,2]
[354122038,1740261048142,-500.0,0.0001452,2]
[354122039,1740261048151,-501.16,0.0001452,2]
[354122040,1740261048160,-500.0,0.0001452,2]
[354122041,1740261048169,-2389.62,0.0001452,2]
[354122042,1740261048179,-500.0,0.0001452,2]
[354122043,1740261048189,-500.0,0.0001452,2]
[354122044,1740261048198,-841.55,0.0001452,2]
[354122045,1740261048208,-12784.92,0.0001452,2]
[354122046,1740261048217,-695.29,0.0001452,2]
[354122047,1740261048229,-1566.94,0.0001452,2]
[354122048,1740261048242,-151.0,0.0001452,2]
[354122049,1740261048252,-560.29,0.0001452,2]
[354122050,1740261048261,-2369.43,0.0001452,2]
[354122051,1740261048271,-500.0,0.0001452,2]
[354122052,1740261048280,-500.0,0.0001452,2]
[354122053,1740261048293,-42163.5531667,0.00014581,5]
[354122054,1740261048303,-10798.52356176,0.00014582,2]
[354122055,1740261048768,-500.0,0.00013698,2]
[354122056,1740261048778,-500.0,0.0001378,2]
[354122057,1740261048787,-500.00569627,0.00013863,2]
[354122058,1740261048798,-2126.37318258,0.00014582,2]
[354122059,1740261048807,-516.56,0.00014602,2]
[354122060,1740261048817,-500.0,0.00014602,2]
[354122061,1740261048826,-500.0,0.00014602,2]
[354122062,1740261048837,-1260.69,0.00014602,2]
[354122063,1740261048846,-552.62,0.00014602,2]
[354122064,1740261048856,-500.0,0.00014602,2]
[354122065,1740261048866,-500.0,0.00014602,2]
[354122066,1740261048874,-500.0,0.00014602,2]
[354122067,1740261048883,-501.16,0.00014602,2]
[354122068,1740261048893,-500.0,0.00014602,2]
[354122069,1740261048903,-2389.62,0.00014602,2]
[354122070,1740261048912,-500.0,0.00014602,2]
[354122071,1740261048922,-500.0,0.00014602,2]
[354122072,1740261048932,-841.55,0.00014602,2]
[354122073,1740261048941,-12784.92,0.00014602,2]
[354122074,1740261048951,-575.38044118,0.00014602,2]
[354122075,1740261048963,-119.90955882,0.00014602,2]
[354122076,1740261048972,-1566.94,0.00014602,2]
[354122077,1740261048982,-560.29,0.00014602,2]
[354122078,1740261048991,-2369.43,0.00014602,2]
[354122079,1740261049001,-500.0,0.00014602,2]
[354122080,1740261049010,-500.0,0.00014602,2]
[354122081,1740261049019,-1376.00386503,0.00014623,2]
[354122082,1740261049029,-500.0,0.00014684,2]
[354122083,1740261049039,-500.0,0.00014684,2]
[354122084,1740261049048,-1260.69,0.00014684,2]
[354122085,1740261049058,-552.62,0.00014684,2]
[354122086,1740261049067,-500.0,0.00014684,2]
[354122087,1740261049077,-500.0,0.00014684,2]
[354122088,1740261049087,-211.89,0.00014684,2]
[354122089,1740261049097,-501.16,0.00014684,2]
[354122090,1740261049107,-500.0,0.00014684,2]
[354122091,1740261049116,-2389.62,0.00014684,2]
[354122092,1740261049126,-500.0,0.00014684,2]
[354122093,1740261049135,-564.32,0.00014684,2]
[354122094,1740261049145,-841.55,0.00014684,2]
[354122095,1740261049154,-2743.84160768,0.00014684,2]
[354122096,1740261049252,-0.0074928,0.00013698,2]
[354122097,1740261049264,-500.17336142,0.00013698,2]
[354122098,1740261049274,-10041.07839232,0.00014684,2]
[354122099,1740261049286,-695.29,0.00014684,2]
[354122100,1740261049295,-1566.94,0.00014684,2]
[354122101,1740261049305,-560.29,0.00014684,2]
[354122102,1740261049315,-2369.43,0.00014684,2]
[354122103,1740261049325,-500.0,0.00014684,2]
[354122104,1740261049335,-500.0,0.00014684,2]
[354122105,1740261049344,-151.0,0.000147,2]
[354122106,1740261049353,-1600.0,0.00014712,2]
[354122107,1740261049364,-500.0,0.00014767,2]
[354122108,1740261049374,-1260.69,0.00014767,2]
[354122109,1740261049383,-552.62,0.00014767,2]
[354122110,1740261049392,-634.27,0.00014767,2]
[354122111,1740261049402,-167.47,0.00014767,2]
[354122112,1740261049411,-501.16,0.00014767,2]
[354122113,1740261049422,-500.0,0.00014767,2]
[354122114,1740261049431,-2389.62,0.00014767,2]
[354122115,1740261049441,-500.0,0.00014767,2]
[354122116,1740261049451,-841.55,0.00014767,2]
[354122117,1740261049461,-12784.92,0.00014767,2]
[354122118,1740261049471,-695.29,0.00014767,2]
[354122119,1740261049480,-1566.94,0.00014767,2]
[354122120,1740261049490,-560.29,0.00014767,2]
[354122121,1740261049499,-2369.43,0.00014767,2]
[354122122,1740261049509,-500.0,0.00014767,2]
[354122123,1740261049518,-500.0,0.00014767,2]
[354122124,1740261049528,-713.99932675,0.00014843,2]
[354122125,1740261049538,-151.0,0.00014849,2]
[354122126,1740261049547,-212.407257,0.00014849,2]
[354122127,1740261049558,-500.0,0.00014849,2]
[354122128,1740261049567,-1260.69,0.00014849,2]
[354122129,1740261049577,-552.62,0.00014849,2]
[354122130,1740261049587,-501.16,0.00014849,2]
[354122131,1740261049681,-500.0,0.00014849,2]
[354122132,1740261049690,-2389.62,0.00014849,2]
[354122133,1740261049700,-461.15,0.00014849,2]
[354122134,1740261049710,-841.55,0.00014849,2]
[354122135,1740261049719,-12784.92,0.00014849,2]
[354122136,1740261049729,-695.29,0.00014849,2]
[354122137,1740261049738,-1566.94,0.00014849,2]
[354122138,1740261049747,-560.29,0.00014849,2]
[354122139,1740261049756,-2369.43,0.00014849,2]
[354122140,1740261049766,-500.0,0.00014849,2]
[354122141,1740261049775,-500.0,0.00014849,2]
[354122142,1740261049784,-338.005,0.00014898,2]
[354122143,1740261049793,-151.0,0.000149,2]
[354122144,1740261049803,-1248.22230996,0.000149,2]
[354122145,1740261049812,-500.0,0.00014917,2]
[354122146,1740261049821,-500.0,0.00014917,2]
[354122147,1740261049830,-500.0,0.00014931,2]
[354122148,1740261049840,-1260.69,0.00014931,2]
[354122149,1740261049850,-552.62,0.00014931,2]
[354122150,1740261049859,-501.16,0.00014931,2]
[354122151,1740261049868,-245.82,0.00014931,2]
[354122152,1740261049877,-2389.62,0.00014931,2]
[354122153,1740261049887,-841.55,0.00014931,2]
[354122154,1740261049897,-12784.92,0.00014931,2]
[354122155,1740261049907,-695.29,0.00014931,2]
[354122156,1740261049916,-1566.94,0.00014931,2]
[354122157,1740261049927,-151.0,0.00014931,2]
[354122158,1740261049937,-560.29,0.00014931,2]
[354122159,1740261049947,-2369.43,0.00014931,2]
[354122160,1740261049957,-500.0,0.00014931,2]
[354122161,1740261049967,-500.0,0.00014931,2]
[354122162,1740261049978,-151.0,0.00015,2]
[354122163,1740261049987,-251.521152,0.00015013,2]
[354122164,1740261049997,-151.0,0.00015013,2]
[354122165,1740261050006,-151.0,0.00015013,2]
[354122166,1740261050016,-500.0,0.00015013,2]
[354122167,1740261050025,-1260.69,0.00015013,2]
[354122168,1740261050035,-552.62,0.00015013,2]
[354122169,1740261050044,-501.16,0.00015013,2]
[354122170,1740261050053,-2389.62,0.00015013,2]
[354122171,1740261050063,-841.55,0.00015013,2]